bitfinex/quotes_ETHUSD_20240707
["timestamp","ask_amount","ask_price","bid_price","bid_amount"]
[1720374805404,2.4272,3005.1,3004.2,0.2374]
[1720374805586,2.4272,3005.1,3004.6,2.32972]
[1720374805909,2.4272,3005.1,3004.7,2.32968]
[1720374806409,2.4272,3005.1,3004.4,2.32987]
[1720374806613,2.4272,3005.1,3004.5,0.55]
[1720374806985,2.4272,3005.1,3004.4,2.32986]
[1720374807687,2.4272,3005.1,3004.6,2.32976]
[1720374808073,2.4272,3005.1,3004.8,2.32956]
[1720374808272,2.4272,3005.1,3004.8,4.6591]
[1720374808495,2.4272,3005.1,3004.9,2.32952]
[1720374809213,2.4272,3005.1,3004.6,2.3297]
[1720374809589,2.3058,3004.8,3003.5,0.52778018]
[1720374809795,2.3058,3004.8,3004.2,2.33002]
[1720374810030,2.2558,3004.8,3004.2,2.33002]
[1720374810172,2.2558,3004.8,3004.4,2.3299]
[1720374810375,2.2558,3004.8,3004.6,2.3297]
[1720374810618,2.2558,3004.8,3004.7,2.32968]
[1720374811878,2.2558,3004.8,3004.6,0.23962587]
[1720374812087,2.2558,3004.8,3004.2,2.32999]
[1720374812279,2.2558,3004.8,3004.3,2.32998]
[1720374812687,2.2558,3004.8,3004.0,2.33017]
[1720374812887,2.78138,3004.8,3004.1,2.33013]
[1720374813115,1.15315089,3004.7,3004.1,2.33013]
[1720374813289,2.78138,3004.8,3004.1,2.33013]
[1720374813485,1.15316202,3004.7,3004.1,2.33013]
[1720374813690,1.15316202,3004.6,3004.1,2.33013]
[1720374813911,2.2558,3004.8,3004.0,2.33022]
[1720374814111,1.15316216,3004.7,3004.1,0.55]
[1720374814280,3.45896216,3004.6,3003.7,2.33042]
[1720374814480,1.15316216,3004.5,3003.8,2.33036]
[1720374814730,1.15316216,3004.5,3003.7,2.33042]
[1720374815023,1.15323386,3004.4,3003.8,2.33037]
[1720374815245,2.3058,3004.6,3003.9,2.33029]
[1720374815383,1.153225,3004.5,3003.9,2.33029]
[1720374815589,1.153225,3004.4,3003.9,2.33029]
[1720374815914,2.3058,3004.6,3003.9,2.33029]
[1720374816094,1.15323165,3004.5,3003.9,2.33029]
[1720374816296,2.3058,3004.6,3003.9,2.8429689]
[1720374816491,1.1531802,3004.5,3003.9,2.8429689]
[1720374816814,1.1531802,3004.4,3003.9,0.5126789]
[1720374817015,1.1531802,3004.5,3003.8,2.33037]
[1720374817319,1.1531802,3004.5,3003.9,0.55]
[1720374817681,1.1531802,3004.5,3003.6,2.33048]
[1720374818014,1.49907822,3004.5,3003.7,2.88042]
[1720374818205,1.15324507,3004.4,3003.7,2.88042]
[1720374818404,1.15324507,3004.3,3003.7,2.88042]
[1720374818604,1.15324507,3004.4,3003.8,2.33037]
[1720374818814,1.15324507,3004.3,3003.8,2.33037]
[1720374819038,2.3058,3004.4,3003.3,0.54671]
[1720374819182,1.15324824,3004.3,3003.4,2.33067]
[1720374819378,1.15324824,3004.2,3003.4,2.33067]
[1720374819694,1.15324824,3004.1,3003.4,2.33067]
[1720374820025,1.15338012,3004.0,3003.4,2.851491]
[1720374820198,2.3058,3004.4,3003.4,2.33067]
[1720374820513,2.60671656,3004.3,3003.4,2.33067]
[1720374820678,2.60671656,3004.2,3003.4,2.33067]
[1720374820879,1.15341441,3004.1,3003.4,5.12746]
[1720374821116,2.3058,3004.4,3003.4,2.79678]
[1720374821516,2.308,3004.2,3003.2,2.33078]
[1720374821814,2.308,3004.0,3003.3,2.88076]
[1720374821986,2.60680841,3003.9,3003.0,2.33094]
[1720374822187,5.308,3004.0,3003.2,2.33078]
[1720374822416,1.45337788,3003.9,3003.3,0.55]
[1720374822826,2.12951567,3003.9,3003.2,2.33078]
[1720374823028,0.67613779,3003.9,3003.2,2.33078]
[1720374823228,0.67613779,3003.9,3003.3,0.55]
[1720374823710,0.67613779,3003.9,3003.2,2.33078]
[1720374823920,0.67613779,3003.9,3003.3,0.55]
[1720374824098,0.67613779,3003.9,3003.2,2.33078]
[1720374824410,0.67613779,3003.9,3003.0,2.33098]
[1720374824607,0.67613779,3003.9,3003.1,0.55]
[1720374824997,0.67613779,3003.9,3003.1,2.88091]
[1720374825201,0.67613779,3003.9,3003.2,2.33083]
[1720374825410,5.308,3004.0,3003.2,2.33083]
[1720374825634,1.45336755,3003.9,3003.2,2.33083]
[1720374826239,5.308,3004.0,3003.3,2.33076]
[1720374826441,5.308,3004.0,3003.4,2.33068]
[1720374830325,5.308,3004.0,3003.2,4.66155]
[1720374830621,3.76129954,3003.9,3003.2,0.5677761]
[1720374830821,2.308,3003.9,3003.1,2.88091]
[1720374831031,2.308,3003.9,3003.2,2.33079]
[1720374831205,2.308,3003.9,3003.3,2.33076]
[1720374833925,2.308,3003.9,3003.3,2.39734726]
[1720374834121,2.2632,3004.2,3003.7,2.33045]
[1720374834326,2.2632,3004.2,3003.8,2.33033]
[1720374835157,3.0,3004.5,3004.0,2.33016]
[1720374835338,3.0,3004.5,3003.9,2.39686622]
[1720374835339,3.0,3004.5,3004.1,2.33013]
[1720374835738,3.0,3004.5,3004.1,2.3301]
[1720374836760,2.2632,3004.7,3004.3,2.32998]
[1720374837053,2.2632,3004.7,3004.3,4.65991]
[1720374837443,2.2632,3004.7,3004.3,2.32993]
[1720374838643,2.2632,3004.7,3004.5,2.32983]
[1720374840561,2.2632,3004.7,3003.9,2.33025]
[1720374840759,2.83250865,3004.6,3003.9,2.33025]
[1720374840962,4.45300477,3004.5,3003.5,2.33057]
[1720374841123,3.0,3004.1,3003.5,2.33056]
[1720374841459,3.0,3004.1,3003.6,2.33049]
[1720374842246,3.0,3004.1,3003.7,2.33045]
[1720374842447,2.2632,3004.4,3003.8,2.33034]
[1720374842651,2.60644923,3004.3,3003.8,2.33034]
[1720374842852,1.15329612,3004.2,3003.8,2.33034]
[1720374843071,1.15329612,3004.3,3003.8,2.33034]
[1720374843230,2.2632,3004.4,3003.8,2.33034]
[1720374843568,2.60645639,3004.3,3003.6,2.33051]
[1720374843766,2.60645639,3004.2,3003.6,2.33051]
[1720374844058,0.78696564,3004.3,3003.6,2.33051]
[1720374844262,2.60651963,3004.2,3003.7,2.33045]
[1720374844561,2.60655164,3004.1,3003.4,4.66131]
[1720374844861,2.3401,3003.9,3003.3,2.33071]
[1720374845163,2.3401,3003.9,3003.2,2.33079]
[1720374845744,1.15347748,3003.8,3003.2,2.33079]
[1720374845944,2.3401,3003.9,3003.2,2.33079]
[1720374846264,1.15347205,3003.8,3003.0,2.797141]
[1720374846488,2.60692434,3003.7,3003.0,2.797141]
[1720374846630,1.15350634,3003.7,3003.0,2.797141]
[1720374846833,2.87411,3003.9,3003.0,2.797141]
[1720374847032,2.60695674,3003.8,3003.0,2.797141]
[1720374847268,2.60695674,3003.7,3003.0,2.797141]
[1720374847565,2.87411,3003.9,3003.0,5.128081]
[1720374847739,3.06873471,3003.8,3003.0,2.797141]
[1720374847945,5.60697033,3003.7,3003.0,2.33093]
[1720374848268,5.60697033,3003.7,3002.4,15.10545]
[1720374848269,3.0,3003.3,3002.6,2.33126]
[1720374848658,2.60735419,3003.2,3002.6,2.33126]
[1720374848874,3.0,3003.3,3002.6,2.33126]
[1720374849038,2.60742124,3003.2,3002.6,2.33126]
[1720374849238,3.0,3003.3,3002.6,2.33126]
[1720374849553,1.15373442,3003.2,3002.6,2.33126]
[1720374849760,1.45370771,3003.2,3002.6,2.33126]
[1720374849969,3.0,3003.3,3002.6,2.33126]
[1720374850137,3.0,3003.3,3002.4,2.3314]
[1720374850138,1.4537115,3003.2,3002.4,2.3314]
[1720374850334,3.0,3002.8,3002.2,2.33158]
[1720374850948,3.0,3002.8,3002.1,2.3317]
[1720374851163,3.0,3002.8,3001.6,2.33208]
[1720374851164,3.0,3002.3,3001.6,2.33203]
[1720374851382,3.0,3002.3,3001.7,2.33196]
[1720374851651,3.0,3002.3,3001.8,0.466399]
[1720374852376,3.0,3002.3,3001.7,2.33196]
[1720374852545,3.0,3002.3,3001.4,2.3322]
[1720374852546,3.0,3002.3,3001.5,2.33212]
[1720374853076,3.0,3002.3,3001.4,2.3322]
[1720374853749,3.0,3002.3,3001.4,2.33219]
[1720374853949,2.3401,3002.2,3001.2,2.33239]
[1720374854208,2.3401,3002.2,3001.4,2.33219]
[1720374854517,2.3401,3002.2,3001.4,2.39879679]
[1720374854855,2.3401,3002.2,3001.5,2.33215]
[1720374856372,2.3401,3002.2,3001.6,2.33202]
[1720374856575,2.3401,3002.2,3001.7,2.882]
[1720374856751,2.3401,3002.2,3001.7,0.55]
[1720374857176,2.3401,3002.2,3001.7,2.882]
[1720374859216,2.3401,3002.2,3001.7,0.55]
[1720374859418,2.3401,3002.2,3001.5,0.55]
[1720374859712,2.3401,3002.2,3001.5,2.88216]
[1720374860220,2.3401,3002.2,3000.9,5.33262]
[1720374860221,3.0,3001.6,3000.9,4.66516]
[1720374860415,3.0,3001.6,3001.0,2.39915935]
[1720374860802,2.3401,3002.0,3001.2,2.33239]
[1720374861007,2.3401,3002.0,3001.4,2.33222]
[1720374861996,2.3401,3002.0,3001.5,0.55]
[1720374862205,2.3401,3002.0,3001.6,2.620272]
[1720374862405,2.3401,3002.0,3001.1,2.33241]
[1720374862603,2.3401,3002.0,3001.2,2.88235]
[1720374864317,2.3401,3002.0,3001.3,2.33231]
[1720374864522,2.3401,3002.0,3001.5,2.33215]
[1720374864892,2.3401,3002.0,3001.2,0.55]
[1720374865394,2.3401,3002.0,3001.2,0.838245]
[1720374865809,2.3401,3002.0,3001.3,2.33231]
[1720374866004,2.3401,3002.0,3001.4,0.55]
[1720374866825,2.3401,3002.0,3001.2,0.288245]
[1720374866826,3.0,3001.7,3001.3,0.55]
[1720374867182,3.0,3001.7,3001.2,0.55]
[1720374867583,3.0,3001.7,3000.7,3.0]
[1720374867584,3.3,3001.7,3000.7,2.33272]
[1720374868270,2.2611,3001.6,3000.8,2.33266]
[1720374868405,3.0,3001.3,3000.7,2.33272]
[1720374869007,3.0,3001.3,3000.8,0.55]
[1720374871354,3.0,3000.9,3000.1,2.33319]
[1720374872006,3.0,3000.9,3000.2,2.33317]
[1720374872850,3.0,3000.9,3000.2,2.39982437]
[1720374873053,3.0,3000.9,3000.3,2.39974437]
[1720374873408,3.0,3000.9,3000.2,2.33316]
[1720374873608,3.0,3000.9,3000.0,2.33328]
[1720374873828,3.0,3000.9,3000.1,2.33325]
[1720374874048,3.0,3000.9,3000.2,0.55]
[1720374875121,2.2611,3000.8,3000.2,0.55]
[1720374875312,2.2611,3000.8,3000.0,0.55]
[1720374875654,2.78721,3000.8,3000.0,0.55]
[1720374876146,2.78721,3000.8,3000.1,2.33325]
[1720374876354,2.2611,3000.8,3000.2,0.55]
[1720374876829,2.2611,3000.8,3000.0,0.55]
[1720374877213,2.2611,3000.8,2999.8,0.55]
[1720374878827,2.2611,3000.8,3000.0,2.33333]
[1720374879033,2.2611,3000.8,3000.1,0.55]
[1720374880143,2.78721,3000.8,3000.1,0.55]
[1720374880312,2.78721,3000.8,2999.9,0.55]
[1720374880750,2.78721,3000.8,2999.9,2.8834]
[1720374881339,2.2611,3000.8,3000.0,2.33332]
[1720374881634,2.2611,3000.8,3000.1,0.55]
[1720374883262,2.2611,3000.8,2999.9,2.8834]
[1720374884476,2.483,3000.4,2999.9,0.55]
[1720374884641,2.483,3000.4,2999.8,0.55]
[1720374885653,2.483,3000.4,2999.5,4.66733]
[1720374885654,2.483,3000.4,2999.6,0.55]
[1720374885856,3.0,3000.1,2999.7,0.288366]
[1720374886056,3.0,3000.1,2999.4,2.33375]
[1720374886354,3.0,3000.1,2999.5,2.33371]
[1720374887578,3.0,3000.1,2999.5,4.66742]
[1720374887746,3.0,3000.1,2999.6,2.33363]
[1720374888269,3.0,3000.1,2999.4,5.33372]
[1720374888578,3.0,2999.7,2999.1,4.66792]
[1720374888783,3.0,2999.7,2999.1,2.33396]
[1720374889079,3.0,2999.7,2999.2,2.3339]
[1720374889252,3.0,2999.7,2999.1,2.33396]
[1720374889977,3.0,2999.7,2999.1,4.66795]
[1720374890182,3.0,2999.7,2999.1,2.33396]
[1720374890479,3.0,2999.7,2999.2,0.55]
[1720374891477,3.0,2999.7,2998.9,2.33417]
[1720374891478,2.483,2999.6,2998.9,4.66831]
[1720374891692,2.483,2999.6,2999.1,2.33403]
[1720374893249,2.483,2999.6,2999.2,2.33389]
[1720374893750,3.0,2999.7,2999.3,2.40054857]
[1720374894081,3.0,2999.7,2999.5,2.33372]
[1720374895595,3.0,2999.7,2999.4,0.55]
[1720374896696,3.0,2999.7,2999.4,2.88379]
[1720374899612,10.4,3000.5,2999.9,2.3334]
[1720374899613,7.4,3000.5,2999.9,2.3334]
[1720374899811,3.0,3000.3,2999.9,2.3334]
[1720374900017,3.0,3000.3,2999.9,4.66674]
[1720374900882,3.0,3000.3,3000.0,2.33331]
[1720374901411,3.3,3000.3,2999.6,2.33363]
[1720374901614,3.3,3000.3,2999.4,3.40556]
[1720374901615,2.483,3000.2,2999.4,2.88379]
[1720374902124,2.483,3000.2,2999.5,2.33365]
[1720374902578,2.483,3000.2,2999.9,2.33339]
[1720374902787,3.0,3000.3,2999.9,2.33339]
[1720374903119,3.0,3000.3,2999.8,2.33341]
[1720374903330,3.0,3000.3,2999.9,0.55]
[1720374903331,3.3,3000.3,2999.9,0.55]
[1720374903529,2.4325,3000.2,2999.7,0.55]
[1720374903827,2.4325,3000.2,2999.4,2.88372]
[1720374904330,1.15495043,3000.1,2999.4,2.88372]
[1720374904634,2.4325,3000.2,2999.4,2.88372]
[1720374904784,1.1549614,3000.1,2999.4,2.88372]
[1720374904991,3.0,2999.9,2999.4,0.55]
[1720374905196,3.0,2999.9,2999.3,0.55]
[1720374906342,3.0,2999.9,2999.3,2.88383]
[1720374906845,3.0,2999.9,2999.4,2.33379]
[1720374908146,3.0,2999.9,2999.3,0.55]
[1720374908352,3.0,2999.6,2998.8,2.33421]
[1720374908639,3.0,2999.6,2998.9,2.33414]
[1720374908848,3.0,2999.6,2998.9,5.33414]
[1720374909634,3.0,2999.6,2998.9,2.33414]
[1720374909871,3.0,2999.3,2998.7,2.33433]
[1720374910364,3.0,2999.3,2998.8,2.33426]
[1720374910644,3.0,2999.3,2998.6,2.33435]
[1720374910810,3.0,2999.3,2998.7,2.33433]
[1720374911635,3.0,2999.3,2998.7,4.66863]
[1720374911802,3.5,2999.3,2998.8,2.88426]
[1720374912321,0.5,2999.3,2999.2,2.33395]
[1720374912645,0.5,2999.3,2999.2,5.2179]
[1720374913153,0.5,2999.3,2999.2,10.55185]
[1720374914407,8.79097397,3000.6,3000.1,2.33325]
[1720374914607,2.6096491,3000.5,3000.1,2.33325]
[1720374914844,2.6096491,3000.4,3000.1,2.33325]
[1720374915043,1.39097397,3000.9,3000.1,2.33325]
[1720374915351,2.60966485,3000.8,3000.3,2.33309]
[1720374915562,6.82347397,3001.1,3000.4,0.55]
[1720374915846,2.60934985,3001.0,3000.4,0.55]
[1720374916049,5.4325,3001.1,3000.5,2.33288]
[1720374916209,2.60924792,3001.0,3000.5,4.66575]
[1720374916408,5.4325,3001.1,3000.5,4.66575]
[1720374916409,1.45471344,3000.9,3000.6,2.33285]
[1720374916606,5.4325,3001.1,3000.6,2.33285]
[1720374916838,2.60919394,3001.0,3000.6,2.33285]
[1720374917037,1.45468335,3000.9,3000.6,2.33285]
[1720374917229,5.4325,3001.1,3000.6,2.33285]
[1720374917429,1.45472416,3001.0,3000.6,2.33285]
[1720374918513,2.28254397,3001.0,3000.3,2.33306]
[1720374918734,1.45472416,3000.9,3000.3,2.33306]
[1720374919433,1.45479967,3000.8,3000.3,2.33306]
[1720374919638,6.82797589,3001.1,3000.4,2.88296]
[1720374919822,1.45470775,3001.0,3000.4,2.88296]
[1720374920020,1.45470775,3001.0,3000.4,5.21593]
[1720374920220,1.45470775,3001.0,3000.4,5.74418835]
[1720374921106,1.45470775,3001.0,3000.5,2.33293]
[1720374921310,1.45470775,3001.0,3000.4,3.41121835]
[1720374921311,1.45470775,3001.0,3000.6,2.33285]
[1720374921515,1.39547589,3001.3,3000.6,4.66566]
[1720374921710,1.45464835,3001.2,3000.6,2.39945995]
[1720374921952,1.45464835,3001.2,3000.7,0.55]
[1720374922517,3.0,3001.3,3000.8,2.3327]
[1720374922726,1.4545992,3001.2,3000.8,2.3327]
[1720374922955,3.0,3001.4,3000.8,2.3327]
[1720374923116,1.45457759,3001.3,3000.8,2.3327]
[1720374923723,1.45457759,3001.3,3000.8,4.66535]
[1720374923928,3.0,3001.4,3000.8,4.66535]
[1720374928050,3.0,3001.4,3000.9,2.33263]
[1720374929356,3.84325,3001.4,3000.9,2.33263]
[1720374930842,5.4325,3001.5,3001.0,2.33255]
[1720374930843,3.0,3001.5,3001.0,2.33255]
[1720374931046,2.3311,3001.8,3001.1,0.55]
[1720374931259,1.39509539,3002.1,3001.5,2.33216]
[1720374931462,2.3311,3002.2,3001.5,4.66432]
[1720374933291,2.3311,3002.2,3001.5,2.33216]
[1720374933454,3.0,3002.0,3001.5,2.33216]
[1720374933979,3.0,3002.0,3001.5,4.66427]
[1720374934282,3.0,3002.0,3001.3,2.33226]
[1720374934437,3.0,3002.0,3001.5,2.33211]
[1720374935191,3.0,3002.0,3001.6,2.33204]
[1720374935341,3.0,3002.0,3001.7,2.332]
[1720374935546,3.0,3002.4,3001.7,2.332]
[1720374938295,3.0,3002.4,3001.8,0.06662781]
[1720374938444,3.0,3002.4,3001.9,0.55]
[1720374938639,3.53311,3002.4,3001.9,0.55]
[1720374938846,3.53311,3002.4,3001.9,2.88185]
[1720374940251,3.53311,3002.4,3001.8,2.33188]
[1720374940450,2.3311,3002.9,3001.9,3.02582295]
[1720374940696,0.05809907,3003.2,3002.5,2.33137]
[1720374940868,3.0,3003.1,3002.5,2.33137]
[1720374941064,2.3311,3003.3,3002.5,2.33137]
[1720374941262,2.56421,3003.3,3002.5,2.33137]
[1720374941468,2.56421,3003.3,3002.6,2.33129]
[1720374941854,2.56421,3003.3,3002.7,2.33123]
[1720374942251,3.0,3003.1,3002.5,4.66269]
[1720374942505,3.0,3003.1,3002.5,2.33132]
[1720374942652,3.0,3003.1,3002.6,2.3313]
[1720374944326,3.0,3003.1,3002.5,2.33132]
[1720374944327,3.0,3003.1,3002.7,2.33122]
[1720374944630,2.56421,3003.3,3002.7,2.33122]
[1720374945004,2.56421,3003.3,3002.8,2.33109]
[1720374945744,2.3311,3003.3,3002.8,2.33109]
[1720374946071,3.0,3003.4,3002.9,2.33107]
[1720374947887,3.0,3003.4,3003.0,2.33097]
[1720374948104,3.0,3003.4,3002.9,2.33107]
[1720374948105,3.0,3003.5,3003.1,2.33091]
[1720374949948,3.0,3003.5,3003.1,2.32952178]
[1720374951219,3.781456,3003.5,3003.1,2.32952178]
[1720374951422,3.781456,3003.5,3002.9,4.66208]
[1720374951628,3.781456,3003.5,3003.0,2.33098]
[1720374952237,3.781456,3003.5,3002.7,2.33119]
[1720374952407,6.112066,3003.5,3002.8,0.55]
[1720374952601,0.43421131,3003.4,3002.9,4.66214]
[1720374952849,3.0,3003.5,3002.9,4.66214]
[1720374954145,3.0,3003.5,3002.9,2.33107]
[1720374954428,3.0,3003.5,3002.9,4.66208]
[1720374955541,3.0,3003.5,3002.9,2.33101]
[1720374955746,3.0,3003.9,3002.9,0.06659964]
[1720374955747,2.4841,3003.9,3002.9,0.06659964]
[1720374956040,2.4841,3003.9,3003.4,2.33068]
[1720374957311,2.4841,3003.9,3003.3,2.33076]
[1720374958068,5.33011,3004.2,3003.2,2.33083]
[1720374958069,5.4469,3004.2,3003.4,2.33068]
[1720374958267,3.0,3004.1,3003.4,2.33068]
[1720374958477,5.33015,3004.1,3003.4,2.33068]
[1720374959636,3.0,3004.1,3003.4,4.6613]
[1720374959845,5.8547,3004.7,3003.2,0.06659032]
[1720374959846,3.0,3004.7,3003.2,0.06659032]
[1720374960175,5.32969,3004.7,3004.0,2.33015]
[1720374961665,4.2269,3004.8,3004.1,0.06657653]
[1720374961869,1.78,3004.8,3004.4,2.32989]
[1720374962166,1.78,3004.8,3004.5,2.32983]
[1720374962363,0.1087928,3005.2,3004.6,2.32975]
[1720374962575,0.1087928,3005.2,3004.8,2.32955]
[1720374962927,0.1087928,3005.2,3004.9,2.32951]
[1720374963142,0.1087928,3005.2,3004.9,2.562461]
[1720374963344,0.1087928,3005.2,3004.7,2.32968]
[1720374963576,0.1087928,3005.2,3004.6,2.32974]
[1720374963784,0.1087928,3005.2,3004.7,0.55]
[1720374963785,0.0587928,3005.2,3004.7,0.55]
[1720374964140,2.4933928,3005.2,3004.0,9.73018]
[1720374964341,3.0,3004.9,3004.0,2.33018]
[1720374964540,3.0,3004.9,3003.8,4.69645]
[1720374964848,3.0,3004.9,3003.7,2.56502]
[1720374965044,0.532945,3004.8,3003.8,2.33034]
[1720374965759,2.3297,3004.7,3003.6,2.33052]
[1720374965966,2.4346,3004.4,3003.4,2.33068]
[1720374966190,2.4346,3004.9,3004.0,2.33016]
[1720374966390,0.0587928,3005.2,3004.2,2.33006]
[1720374966551,0.0587928,3005.2,3004.5,2.32982]
[1720374966885,0.0587928,3005.2,3004.3,2.562976]
[1720374967084,0.0587928,3005.2,3004.6,2.32975]
[1720374967466,0.0587928,3005.2,3004.7,0.55]
[1720374969096,0.0587928,3005.2,3004.8,2.32959]
[1720374969391,0.0587928,3005.2,3004.9,0.55]
[1720374969749,0.0587928,3005.2,3004.4,2.32988]
[1720374969973,0.0587928,3005.2,3004.5,2.87978]
[1720374970591,0.0587928,3005.2,3004.6,2.32974]
[1720374971567,0.0587928,3005.2,3004.7,2.87966]
[1720374971770,0.0587928,3005.2,3004.7,0.55]
[1720374972084,0.0587928,3005.2,3005.0,2.32939]
[1720374972486,0.0587928,3005.2,3005.1,2.87937]
[1720374974086,0.0587928,3005.2,3005.1,0.55]
[1720374974304,0.0587928,3005.2,3004.5,4.69586]
[1720374974597,2.4933928,3005.2,3004.4,2.32989]
[1720374974804,2.74273208,3005.2,3004.4,2.32989]
[1720374974973,2.74273208,3005.2,3004.4,2.32983]
[1720374975173,2.74273208,3005.2,3004.6,2.32974]
[1720374975382,0.30813208,3005.2,3004.6,2.32971]
[1720374975578,0.0587928,3005.2,3004.7,2.32965]
[1720374976086,0.0587928,3005.2,3004.0,2.33019]
[1720374976310,0.0587928,3005.2,3004.7,2.32966]
[1720374977659,0.0587928,3005.2,3004.4,2.87987]
[1720374977962,0.0587928,3005.2,3004.6,2.32971]
[1720374978182,0.0587928,3005.2,3004.7,0.55]
[1720374978634,0.0587928,3005.2,3004.7,2.87967]
[1720374978929,0.0587928,3005.2,3004.8,2.32955]
[1720374979088,0.0587928,3005.2,3005.0,2.32944]
[1720374980823,0.40727637,3005.2,3005.0,2.32944]
[1720374981123,0.40727637,3005.2,3005.1,5.20874]
[1720374982891,0.40727637,3005.2,3005.0,2.32942]
[1720374983230,0.40727637,3005.2,3004.7,2.32962]
[1720374983425,0.40727637,3005.2,3004.8,2.32958]
[1720374983590,0.40727637,3005.2,3004.7,2.32962]
[1720374983792,0.40727637,3005.2,3004.8,2.32959]
[1720374984200,0.40727637,3005.2,3005.1,2.32937]
[1720374984602,0.40727637,3005.2,3005.1,4.65874]
[1720374985133,0.40727637,3005.2,3005.1,5.20874]
[1720374988136,0.40727637,3005.2,3005.1,5.27527986]
[1720374988540,0.40727637,3005.2,3005.1,7.53811]
[1720374988726,0.40727637,3005.2,3005.1,8.528691]
[1720374989326,0.40727637,3005.2,3005.1,6.199321]
[1720374990241,0.40727637,3005.2,3005.1,5.20874]
[1720374991251,0.40727637,3005.2,3004.7,2.32965]
[1720374991460,0.40727637,3005.2,3004.6,2.3297]
[1720374991606,0.40727637,3005.2,3004.8,2.3296]
[1720374991940,0.40727637,3005.2,3004.6,2.3297]
[1720374991941,3.0,3005.1,3004.6,2.32969]
[1720374992109,3.34072764,3005.1,3004.4,2.32986]
[1720374992848,3.0,3005.1,3004.4,2.32986]
[1720374993208,3.0,3005.1,3004.4,4.6597]
[1720374993406,3.0,3005.1,3004.5,0.55]
[1720374993608,3.0,3005.1,3004.5,2.87981]
[1720374993816,2.3027,3005.0,3004.2,2.33003]
[1720374994107,0.53027,3004.9,3004.2,2.33003]
[1720374994342,0.53027,3004.9,3004.1,3.0]
[1720374994741,2.3027,3005.0,3004.3,2.32998]
[1720374994917,2.3027,3005.0,3003.7,2.33043]
[1720374994918,3.0,3005.1,3004.5,2.32976]
[1720374995272,0.40727637,3005.2,3004.6,0.06655916]
[1720374995402,0.40727637,3005.2,3004.7,2.32961]
[1720374995627,0.40727637,3005.2,3004.8,2.32959]
[1720374996129,0.40727637,3005.2,3005.1,2.32937]
[1720374996451,0.40727637,3005.2,3005.1,2.87937]
[1720374997463,0.40727637,3005.2,3005.1,5.20874]
[1720374998068,0.40727637,3005.2,3005.1,0.55]
[1720374998764,0.40727637,3005.2,3005.1,2.87937]
[1720374999544,0.40727637,3005.2,3005.1,0.55]
[1720375000970,0.40727637,3005.2,3005.1,2.87937]
[1720375002173,0.40727637,3005.2,3004.8,2.32954]
[1720375002334,0.40727637,3005.2,3004.9,2.87947]
[1720375002535,0.40727637,3005.2,3005.1,2.32937]
[1720375002766,0.40727637,3005.2,3005.1,2.87937]
[1720375009381,0.40727637,3005.2,3005.1,0.55]
[1720375009537,0.40727637,3005.2,3005.1,2.87937]
[1720375010695,0.40727637,3005.2,3005.1,0.55]
[1720375011650,0.40727637,3005.2,3004.6,2.32971]
[1720375011836,1.85985138,3005.2,3004.7,2.32961]
[1720375012036,0.40727637,3005.2,3004.8,0.55]
[1720375012232,1.45259745,3005.1,3004.8,0.55]
[1720375012475,1.45259745,3005.1,3004.8,2.87958]
[1720375012839,0.0587928,3005.2,3004.8,2.87958]
[1720375013040,1.45260252,3005.1,3004.8,2.87958]
[1720375013583,1.45260252,3005.1,3004.8,0.55]
[1720375013795,1.45260252,3005.1,3004.7,3.55]
[1720375014355,0.0587928,3005.2,3004.7,3.55]
[1720375014583,1.45262289,3005.1,3004.7,5.87964]
[1720375015311,1.45262289,3005.1,3004.7,0.55]
[1720375015467,1.45262289,3005.1,3004.5,0.55]
[1720375015805,1.7783989,3005.1,3004.5,0.55]
[1720375016005,1.45262289,3005.0,3004.5,0.55]
[1720375016207,1.45262289,3005.0,3004.6,2.32974]
[1720375016378,1.45262289,3005.0,3004.7,0.55]
[1720375016579,6.83652289,3005.0,3004.1,7.4]
[1720375016809,2.16885278,3004.9,3004.0,2.33017]
[1720375017101,1.45262289,3004.8,3003.9,2.33027]
[1720375017421,2.60570246,3004.7,3004.0,2.33022]
[1720375017740,1.45297413,3004.6,3004.0,3.0]
[1720375018026,1.45297413,3004.6,3003.9,2.33028]
[1720375018169,4.45297413,3004.6,3003.6,2.33052]
[1720375018367,3.22613013,3004.5,3003.8,2.33037]
[1720375018569,1.45297413,3004.4,3003.8,2.33037]
[1720375020076,1.45297413,3004.4,3003.9,0.55]
[1720375020474,2.3839,3004.3,3003.7,3.0]
[1720375020701,2.3839,3004.3,3003.5,5.371]
[1720375020702,3.0,3004.1,3003.5,5.371]
[1720375020902,3.0,3004.1,3003.6,0.55]
[1720375021103,3.0,3004.1,3003.6,3.55]
[1720375021317,1.45320523,3004.0,3003.1,4.70192]
[1720375021476,1.45320523,3004.0,3003.3,2.33076]
[1720375022228,4.74593535,3004.1,3003.3,2.33076]
[1720375022229,1.45328178,3003.9,3003.3,2.33076]
[1720375022525,3.0,3004.1,3003.5,2.3306]
[1720375022706,1.45326364,3004.0,3003.5,2.3306]
[1720375022906,1.45326364,3004.0,3003.3,2.33076]
[1720375023242,1.89859,3004.0,3003.4,0.55]
[1720375023415,1.45326649,3003.9,3003.4,0.55]
[1720375023621,0.44532636,3004.0,3003.4,0.55]
[1720375023827,1.45327635,3003.9,3003.4,0.55]